{"text_format":"3","workbook":"xlsx","n_sheets":4,"sheets":["INFO","STEVNERAPPORT","DATA","CUPAVGIFTER"],"not_rendered":{"images":1,"defined_names":4,"comments":1},"read":"whole","date_system":"1900"}

{"sheet":"INFO","index":0,"n_rows":21,"n_cols":8,"rows_kept":21}
[]
["1:","Velg arrangør, stevne og dato - måned - år fra rullegardinene.\n\n Arrangør                          Stevne                                         Dato       Måned          År"]
[]
["2:","Skriv inn navn på stevnet i feltet nedenfor. (Kommer på rapporten.)"]
[null,"[Stevnenavn]"]
[]
["3:","Lagre stevnerapporten med et gjenkjennelig navn, i f. eks \"Mine dokumenter\" eller en annen plassering der du kan finne den igjen."]
[]
["4:","Klikk på knappen \"Stevnerapport\" nederst for å registrere skyttere som har deltatt på stevnet."]
[]
["5:","Sett inn antall skyttere i hver klasse i feltene under \"Totalt\" og \"Andre\".\nSkyttere fra Vesterålen kommer automatisk i feltet \"Egne\".",null,"Totalt",null,"Andre",null,"Egne"]
[]
["6:","Lagre rapporten når du har lagt inn alle skyttere."]
[]
["7:","Klikk på knappen \"Lag PDF\" for å lage .pdf-fil av rapporten. Rapporten lagres på \"skrivebordet\", og åpnes i Adobe Reader, med det navnet som ble angitt i \"[Stevnenavn]\". Stevnerapporten kan lagres (på en annen plassering eller med et annet navn), skrives ut, eller sendes på epost fra Adobe Reader."]
[]
[null,"Stevnerapporten skal sendes på epost til Samlagsleder og Regnskapsfører umiddelbart etter stevnet. Epostadresser finnes på samlagets hjemmesider. (www.dfs.no/vesteraalen)"]
[]
[null,"Samlagets IT-kontakt: Jan Fredriksen, 952 70 694, janaksel@tnett.no"]
[]
[null,"Stevnerapport"]

{"sheet":"STEVNERAPPORT","index":1,"n_rows":34,"n_cols":12,"rows_kept":34,"merged":[[8,1,8,11],[10,3,10,7],[10,9,10,11]]}
[]
[null,"SUM AVGIFTER TIL SAMLAGET:",{"$nulls":9},{"$f":"J31+L31 & \",00 kr.\"","v":"0,00 kr."}]
[null,"SENDES TIL KONTO  4730.16.56315"]
[]
[]
[null,"Arrangør",null,"Stevne",{"$nulls":5},"Dato"]
[null,{"$f":"IF(DATA!D2=\"\",\"\",CHOOSE(DATA!D2,DATA!D3,DATA!D4,DATA!D5,DATA!D6,DATA!D7,DATA!D8))","v":""},null,{"$f":"IF(DATA!E2=\"\",\"\",CHOOSE(DATA!E2,DATA!E3,DATA!E4,DATA!E5,DATA!E6,DATA!E7,DATA!E8,DATA!E9,DATA!E10,DATA!E11))","v":""},{"$nulls":5},{"$f":"IF(DATA!A2=\"\",\"\",CHOOSE(DATA!A2,DATA!A3,DATA!A4,DATA!A5,DATA!A6,DATA!A7,DATA!A8,DATA!A9,DATA!A10,DATA!A11,DATA!A12,DATA!A13,DATA!A14,DATA!A15,DATA!A16,DATA!A17,DATA!A18,DATA!A19,DATA!A20,DATA!A21,DATA!A22,DATA!A23,DATA!A24,DATA!A25,DATA!A26,DATA!A27,DATA!A28,DATA!A29,DATA!A30,DATA!A31,DATA!A32,DATA!A33)&\". \")& IF(DATA!B2=\"\",\"\",CHOOSE(DATA!B2,DATA!B3,DATA!B4,DATA!B5,DATA!B6,DATA!B7,DATA!B8,DATA!B9,DATA!B10,DATA!B11,DATA!B12,DATA!B13,DATA!B14))&\" \"& IF(DATA!C2=\"\",\"\",CHOOSE(DATA!C2,DATA!C3,DATA!C4,DATA!C5,DATA!C6,DATA!C7,DATA!C8,DATA!C9,DATA!C10,DATA!C11,DATA!C12,DATA!C13,DATA!C14))","v":" "}]
[]
[null,{"$f":"INFO!B5","v":"[Stevnenavn]"}]
[null,{"$f":"B9","v":"[Stevnenavn]"}]
[null,"Til Forsiden",null,"Skyttere som har deltatt",{"$nulls":5},"Cupavgifter"]
[null,"Klasser",null,"Totalt",null,"Andre",null,"Egne",null,"Pokal",null,"Beger"]
[null,"ASP",{"$nulls":5},{"$f":"D13-F13","v":0}]
[null,"R",{"$nulls":5},{"$f":"D14-F14","v":0},{"$nulls":3},{"$f":"D14*CUPAVGIFTER!C24","v":0}]
[null,"ER",{"$nulls":5},{"$f":"D15-F15","v":0},{"$nulls":3},{"$f":"D15*CUPAVGIFTER!C24","v":0}]
[null,"JR",{"$nulls":5},{"$f":"D16-F16","v":0},{"$nulls":3},{"$f":"D16*CUPAVGIFTER!C24","v":0}]
[]
[null,"V65",{"$nulls":5},{"$f":"D18-F18","v":0},null,{"$f":"D18*CUPAVGIFTER!B20","v":0},null,{"$f":"D18*CUPAVGIFTER!C20","v":0}]
[null,"V73",{"$nulls":5},{"$f":"D19-F19","v":0},null,{"$f":"D19*CUPAVGIFTER!B21","v":0},null,{"$f":"D19*CUPAVGIFTER!C21","v":0}]
[]
[null,1,{"$nulls":5},{"$f":"D21-F21","v":0},null,{"$f":"D21*CUPAVGIFTER!B14","v":0},null,{"$f":"D21*CUPAVGIFTER!C14","v":0}]
[null,2,{"$nulls":5},0,null,{"$f":"D22*CUPAVGIFTER!B15","v":0},null,{"$f":"D22*CUPAVGIFTER!C15","v":0}]
[null,3,{"$nulls":5},0,null,{"$f":"D23*CUPAVGIFTER!B16","v":0},null,{"$f":"D23*CUPAVGIFTER!C16","v":0}]
[null,4,{"$nulls":5},0,null,{"$f":"D24*CUPAVGIFTER!B17","v":0},null,{"$f":"D24*CUPAVGIFTER!C17","v":0}]
[null,5,{"$nulls":5},0,null,{"$f":"D25*CUPAVGIFTER!B18","v":0},null,{"$f":"D25*CUPAVGIFTER!C18","v":0}]
[null,"V55",{"$nulls":5},0,null,{"$f":"D26*CUPAVGIFTER!B19","v":0},null,{"$f":"D26*CUPAVGIFTER!C19","v":0}]
[null,"AG3/HK416",{"$nulls":5},0]
[null,"Åpen klasse",{"$nulls":5},0]
[null,{"$f":"IF(DATA!E2=3,\"Jeger\",IF(DATA!E2=4,\"Jeger\",IF(DATA!E2=8,\"Jeger\",IF(DATA!E2=9,\"Jeger\",\"\"))))","v":""},{"$nulls":5},0]
[]
[null,"Skyttere totalt:",null,{"$f":"SUM(D13:D29)","v":0},null,{"$f":"SUM(F13:F29)","v":0},null,{"$f":"SUM(H13:H29)","v":0},null,{"$f":"SUM(J13:J29)","v":0},null,{"$f":"SUM(L13:L29)","v":0}]
[]
[null,"SUM AVGIFTER TIL SAMLAGET:",{"$nulls":9},{"$f":"J31+L31 & \",00 kr.\"","v":"0,00 kr."}]
[null,"SENDES TIL KONTO  4730.16.56315"]

{"sheet":"DATA","index":2,"n_rows":33,"n_cols":6,"rows_kept":33,"hidden":true}
["Dato","Måned","År","Arrangører","Stevnetyper"]
[]
[1,"Januar",2014,"Andenes skytterlag","Åpent miniatyr",1]
[2,"Februar",2015,"Bø skytterlag","Samlagsstevne Miniatyr",2]
[3,"Mars",2016,"Dverberg skytterlag","Åpent vinterfelt",3]
[4,"April",2017,"Melbo skytterlag","Samlagsstevne Vinterfelt",4]
[5,"Mai",2018,"Sortland skytterlag","Åpent Bane",5]
[6,"Juni",2019,"Tretinddalen skytterlag","Org. medaljen",6]
[7,"Juli",2020,null,"Samlagsstevne Bane",7]
[8,"August",2021,null,"Samlagsstevne Felt (sommer)",8]
[9,"September",2022,null,"Åpent felt (sommer)",9]
[10,"Oktober",2023]
[11,"November",2024]
[12,"Desember",2025]
[13]
[14]
[15]
[16]
[17]
[18]
[19]
[20]
[21]
[22]
[23]
[24]
[25]
[26]
[27]
[28]
[29]
[30]
[31]

{"sheet":"CUPAVGIFTER","index":3,"n_rows":24,"n_cols":3,"rows_kept":24,"hidden":true}
["CUPAVGIFTER (etter stevnetype)"]
["Pokalavgift klasse 3-4-5",5]
["Pokalavgift klasse 1-2-Veteraner",5]
["Begeravgift voksne",30]
["Begeravgift R/ER/JR",20]
[]
[]
[]
["Stevnetype",{"$f":"DATA!E2","v":0}]
[]
[]
[]
["Klasse","Pokal","Beger"]
[1,{"$f":"IF(B9=3,B3,IF(B9=4,B3,IF(B9=5,B3,IF(B9=6,B3,IF(B9=7,B3,0)))))","v":0},{"$f":"IF(B9=3,B4,IF(B9=4,B4,IF(B9=5,B4,IF(B9=6,B4,IF(B9=7,B4,0)))))","v":0}]
[2,{"$f":"IF(B9=3,B3,IF(B9=4,B3,IF(B9=5,B3,IF(B9=6,B3,IF(B9=7,B3,0)))))","v":0},{"$f":"IF(B9=3,B4,IF(B9=4,B4,IF(B9=5,B4,IF(B9=6,B4,IF(B9=7,B4,0)))))","v":0}]
[3,{"$f":"B2","v":5},{"$f":"IF(B9=3,B4,IF(B9=4,B4,IF(B9=5,B4,IF(B9=6,B4,IF(B9=7,B4,0)))))","v":0}]
[4,{"$f":"B2","v":5},{"$f":"IF(B9=3,B4,IF(B9=4,B4,IF(B9=5,B4,IF(B9=6,B4,IF(B9=7,B4,0)))))","v":0}]
[5,{"$f":"B2","v":5},{"$f":"IF(B9=3,B4,IF(B9=4,B4,IF(B9=5,B4,IF(B9=6,B4,IF(B9=7,B4,0)))))","v":0}]
["V55",{"$f":"IF(B9=3,B3,IF(B9=4,B3,IF(B9=5,B3,IF(B9=6,B3,IF(B9=7,B3,0)))))","v":0},{"$f":"IF(B9=3,B4,IF(B9=4,B4,IF(B9=5,B4,IF(B9=6,B4,IF(B9=7,B4,0)))))","v":0}]
["V65",{"$f":"IF(B9=3,B3,IF(B9=4,B3,IF(B9=5,B3,IF(B9=6,B3,IF(B9=7,B3,0)))))","v":0},{"$f":"IF(B9=3,B4,IF(B9=4,B4,IF(B9=5,B4,IF(B9=6,B4,IF(B9=7,B4,0)))))","v":0}]
["V73",{"$f":"IF(B9=3,B3,IF(B9=4,B3,IF(B9=5,B3,IF(B9=6,B3,IF(B9=7,B3,0)))))","v":0},{"$f":"IF(B9=3,B4,IF(B9=4,B4,IF(B9=5,B4,IF(B9=6,B4,IF(B9=7,B4,0)))))","v":0}]
[]
[]
["R-ER-JR",null,{"$f":"IF(B9=3,B5,IF(B9=4,B5,IF(B9=5,B5,IF(B9=6,B5,IF(B9=7,B5,0)))))","v":0}]